lending/lending_fUSD_20240509
["ID","MTS","AMOUNT","RATE_DAILY","PERIOD"]
[326730219,1715285462325,-500.0,0.00041369,31]
[326730220,1715285462334,-500.0,0.00041369,31]
[326730221,1715285462344,-1000.0,0.00041369,31]
[326730222,1715285462353,-500.0,0.00041369,31]
[326730223,1715285462362,-500.0,0.00041369,31]
[326730224,1715285462377,-500.0,0.00041369,31]
[326730225,1715285462387,-535.96224168,0.00041369,31]
[326730226,1715285462396,-514.24650808,0.00041369,31]
[326730227,1715285462405,-533.85108412,0.00041369,31]
[326730228,1715285462413,-1672.65,0.00041369,31]
[326730229,1715285462424,-1981.24,0.00041369,31]
[326730230,1715285462433,-784.97,0.00041369,31]
[326730231,1715285462442,-500.0,0.00041369,31]
[326730232,1715285462451,-500.0,0.00041369,31]
[326730233,1715285462461,-500.0,0.00041369,31]
[326730234,1715285462470,-500.0,0.00041369,31]
[326730235,1715285462480,-3000.0,0.00041369,31]
[326730236,1715285462491,-605.76,0.00041369,31]
[326730237,1715285462502,-500.0,0.00041369,31]
[326730238,1715285462512,-582.02,0.00041369,2]
[326730239,1715285462521,-1870.15,0.00041369,31]
[326730240,1715285462532,-500.0,0.00041369,31]
[326730241,1715285462543,-1274.8,0.00041369,31]
[326730242,1715285462554,-858.29,0.00041369,31]
[326730243,1715285462563,-552.64,0.00041369,31]
[326730244,1715285462573,-1096.83,0.00041369,31]
[326730245,1715285462582,-500.0,0.00041369,31]
[326730246,1715285462591,-751.88,0.00041369,31]
[326730247,1715285462602,-500.0,0.00041369,31]
[326730248,1715285462612,-500.0,0.00041369,31]
[326730249,1715285462621,-500.0,0.00041369,31]
[326730250,1715285462631,-500.0,0.00041369,31]
[326730251,1715285462640,-500.0,0.00041369,31]
[326730252,1715285462650,-500.0,0.00041369,31]
[326730253,1715285462659,-674.0,0.00041369,31]
[326730254,1715285462668,-1681.06,0.00041369,31]
[326730255,1715285462678,-536.91,0.00041369,31]
[326730256,1715285462687,-722.0,0.00041369,31]
[326730257,1715285462697,-1304.43,0.00041369,31]
[326730258,1715285462707,-2327.17,0.00041369,31]
[326730259,1715285462718,-500.0,0.00041369,31]
[326730260,1715285462727,-500.0,0.00041369,31]
[326730261,1715285462738,-834.61,0.00041369,31]
[326730262,1715285462748,-500.0,0.00041369,31]
[326730263,1715285462757,-548.7,0.00041369,31]
[326730264,1715285462766,-1073.06,0.00041369,31]
[326730265,1715285462776,-882.1,0.00041369,31]
[326730266,1715285462786,-500.0,0.00041369,31]
[326730267,1715285462796,-500.0,0.00041369,31]
[326730268,1715285462806,-1483.98,0.00041369,31]
[326730269,1715285462815,-713.83,0.00041369,31]
[326730270,1715285462986,-500.0,0.00041369,31]
[326730271,1715285462997,-877.8,0.00041369,31]
[326730272,1715285463006,-500.0,0.00041369,31]
[326730273,1715285463016,-500.0,0.00041369,31]
[326730274,1715285463025,-215.485565,0.00041369,31]
[326730275,1715285463035,-500.0,0.00041369,31]
[326730276,1715285463044,-917.3,0.00041369,31]
[326730277,1715285463053,-748.12,0.00041369,31]
[326730278,1715285463063,-620.68,0.00041369,31]
[326730279,1715285463072,-500.0,0.00041369,31]
[326730280,1715285463081,-729.25,0.00041369,31]
[326730281,1715285463091,-806.19,0.00041369,31]
[326730282,1715285463100,-500.0,0.00041369,31]
[326730283,1715285463109,-500.0,0.00041369,31]
[326730284,1715285463118,-500.0,0.00041369,31]
[326730285,1715285463128,-2800.01,0.00041369,30]
[326730286,1715285463138,-835.97,0.00041369,31]
[326730287,1715285463147,-723.98,0.00041369,31]
[326730288,1715285463156,-500.0,0.00041369,31]
[326730289,1715285463166,-500.0,0.00041369,31]
[326730290,1715285463175,-1206.01,0.00041369,31]
[326730291,1715285463185,-1116.1,0.00041369,31]
[326730292,1715285463194,-491.1687643,0.00041369,31]
[326730293,1715285463204,-500.0,0.00041369,31]
[326730294,1715285463213,-568.97,0.00041369,31]
[326730295,1715285463224,-751.73,0.00041369,31]
[326730296,1715285463234,-500.0,0.00041369,31]
[326730297,1715285463243,-500.0,0.00041369,31]
[326730298,1715285463253,-500.0,0.00041369,31]
[326730299,1715285463263,-732.08,0.00041369,31]
[326730300,1715285463272,-500.0,0.00041369,31]
[326730301,1715285463282,-215.06596026,0.00041369,31]
[326730302,1715285463294,-2380.47,0.00041369,31]
[326730303,1715285463304,-500.0,0.00041369,31]
[326730304,1715285463314,-182.99490182,0.00041369,31]
[326730305,1715285463323,-518.00867318,0.00041369,31]
[326730306,1715285463333,-539.09,0.00041369,31]
[326730307,1715285463342,-422.55227704,0.00041369,31]
[326730308,1715285463351,-528.52034898,0.00041369,31]
[326730309,1715285463361,-967.05,0.00041369,31]
[326730310,1715285463375,-500.0,0.00041369,31]
[326730311,1715285463384,-1104.9,0.00041369,31]
[326730312,1715285463394,-500.0,0.00041369,31]
[326730313,1715285463403,-500.0,0.00041369,31]
[326730314,1715285463413,-500.0,0.00041369,31]
[326730315,1715285463424,-500.0,0.00041369,31]
[326730316,1715285463433,-876.09,0.00041369,31]
[326730317,1715285463443,-753.66,0.00041369,31]
[326730318,1715285463452,-1435.33,0.00041369,31]
[326730319,1715285463462,-500.0,0.00041369,31]
[326730320,1715285463471,-500.0,0.00041369,2]
[326730321,1715285463482,-500.0,0.00041369,31]
[326730322,1715285463491,-1137.53,0.00041369,31]
[326730323,1715285463500,-500.0,0.00041369,31]
[326730324,1715285463509,-571.81,0.00041369,31]
[326730325,1715285463518,-500.0,0.00041369,31]
[326730326,1715285463528,-500.0,0.00041369,31]
[326730327,1715285463537,-500.0,0.00041369,31]
[326730328,1715285463547,-500.0,0.00041369,31]
[326730329,1715285463556,-613.53242762,0.00041369,31]
[326730330,1715285463565,-500.0,0.00041369,31]
[326730331,1715285463575,-500.0,0.00041369,31]
[326730332,1715285463584,-504.05723999,0.00041369,31]
[326730333,1715285463593,-500.0,0.00041369,31]
[326730334,1715285463603,-500.0,0.00041369,31]
[326730335,1715285463612,-500.0,0.00041369,31]
[326730336,1715285463622,-3068.87,0.00041369,31]
[326730337,1715285463632,-500.0,0.00041369,31]
[326730338,1715285463642,-214.58465881,0.00041369,31]
[326730339,1715285463651,-1291.43,0.00041369,31]
[326730340,1715285463661,-500.0,0.00041369,31]
[326730341,1715285463670,-606.47,0.00041369,31]
[326730342,1715285463680,-500.0,0.00041369,31]
[326730343,1715285463689,-500.0,0.00041369,31]
[326730344,1715285463699,-500.0,0.00041369,31]
[326730345,1715285463708,-512.70167798,0.00041369,31]
[326730346,1715285463718,-500.0,0.00041369,31]
[326730347,1715285463727,-1188.15,0.00041369,30]
[326730348,1715285463737,-511.14576986,0.00041369,31]
[326730349,1715285463747,-500.0,0.00041369,31]
[326730350,1715285463756,-641.0,0.00041369,31]
[326730351,1715285463765,-500.0,0.00041369,31]
[326730352,1715285463775,-500.0,0.00041369,31]
[326730353,1715285463784,-500.0,0.00041369,31]
[326730354,1715285463794,-500.0,0.00041369,31]
[326730355,1715285463804,-804.0,0.00041369,31]
[326730356,1715285463813,-515.35561874,0.00041369,31]
[326730357,1715285463823,-692.52,0.00041369,31]
[326730358,1715285463832,-500.0,0.00041369,31]
[326730359,1715285463841,-811.22,0.00041369,31]
[326730360,1715285463851,-500.0,0.00041369,31]
[326730361,1715285463861,-140.27925965,0.00041369,31]
[326730362,1715285463913,-359.72074035,0.00041369,31]
[326730363,1715285463923,-337.03552797,0.00041369,31]
[326730364,1715285463933,-500.0,0.00041369,31]
[326730365,1715285463943,-500.0,0.00041369,31]
[326730366,1715285463954,-500.0,0.00041369,31]
[326730367,1715285463963,-1309.01,0.00041369,31]
[326730368,1715285463973,-500.0,0.00041369,31]
[326730369,1715285463982,-500.0,0.00041369,31]
[326730370,1715285463992,-513.44759636,0.00041369,31]
[326730371,1715285464002,-709.07,0.00041369,31]
[326730372,1715285464012,-1099.69,0.00041369,31]
[326730373,1715285464021,-1770.25,0.00041369,31]
[326730374,1715285464030,-500.0,0.00041369,31]
[326730375,1715285464040,-500.0,0.00041369,31]
[326730376,1715285464049,-524.38986034,0.00041369,31]
[326730377,1715285464058,-639.86,0.00041369,31]
[326730378,1715285464067,-500.0,0.00041369,31]
[326730379,1715285464077,-505.28,0.00041369,31]
[326730380,1715285464086,-510.83337277,0.00041369,31]
[326730381,1715285464095,-500.0,0.00041369,31]
[326730382,1715285464105,-942.85,0.00041369,31]
[326730383,1715285464114,-3.89407914,0.00041369,31]
[326730384,1715285464179,-500.0,0.00041095,30]
[326730385,1715285464189,-496.10592086,0.00041369,31]
[326730386,1715285464198,-89.31228738,0.00041369,31]
[326730387,1715285464210,-688.5,0.00041369,31]
[326730388,1715285464654,-737.7791199,0.00032877,2]
[326730389,1715285464666,-1940.05534882,0.00032877,2]
[326730390,1715285464678,-301.83145328,0.00032877,2]
[326730391,1715285464689,-17058.41804389,0.00032877,2]
[326730392,1715285464701,-323.405,0.00032877,2]
[326730393,1715285464713,-266.51398,0.00032877,2]
[326730394,1715285464724,-696.92,0.00032877,2]
[326730395,1715285464736,-16438.89705411,0.00032877,2]
[326730396,1715285464746,-373666.8414736,0.00041369,5]
[326730397,1715285464758,-6364.39687151,0.00041369,5]
[326730398,1715285464771,-3406.1555444,0.00041369,5]
[326730399,1715285464782,-573.37954002,0.00041369,5]
[326730400,1715285464794,-530.421667,0.00041369,5]
[326730401,1715285465150,-164.95052961,0.00041095,30]
[326730402,1715285465159,-1816.08665039,0.00041369,5]
[326730403,1715285465171,-451.5,0.00041369,5]
[326730404,1715285465182,-98006.78442165,0.00041369,5]
[326730405,1715285465194,-1037.17902075,0.00041369,5]
[326730406,1715285465205,-1204.17105637,0.00041369,5]
[326730407,1715285465461,-78.92454179,0.00041369,5]
[326730408,1715285465472,-1226.99999763,0.00041369,5]
[326730409,1715285465483,-6295.52609505,0.00041369,5]
[326730410,1715285465494,-20411.19640812,0.00041369,5]
[326730411,1715285465505,-658.35,0.00041369,5]
[326730412,1715285466595,-311.66922754,0.00032777,2]
[326730413,1715285466605,-2218.69268549,0.00032876,2]
[326730414,1715285466614,-543.13,0.00041095,30]
[326730415,1715285466626,-62.15808697,0.00041369,5]
[326730416,1715285466758,-47712.96935003,0.00041369,5]
[326730417,1715285466772,-28114.39528322,0.00041369,5]
[326730418,1715285466786,-169420.7875665,0.00041369,5]
[326730419,1715285466799,-27133.58466313,0.00041369,5]
[326730420,1715285466917,-355.46848115,0.00018488,2]
[326730421,1715285469769,250.4611882,0.00012,2]
[326730422,1715285528832,288.93006035,0.00012,2]
[326730423,1715285542818,336.75213487,0.00012,2]
[326730430,1715286632228,-6926.48166076,0.00016221,2]
[326730431,1715286632237,-750.52330383,0.00016319,2]
[326730432,1715286632247,-954.84797262,0.0001632,2]
[326730433,1715286632256,-618.36792039,0.00016321,2]
[326730435,1715286632265,-150.0,0.00016321,2]
[326730437,1715286632274,-11.17298711,0.00016322,2]
[326730440,1715286632286,-749.56,0.00016322,2]
[326730442,1715286632298,-4795.19762549,0.00016322,2]
[326730443,1715286632307,-601.0,0.00016421,2]
[326730444,1715286632317,-533.51142844,0.00016425,2]
[326730445,1715286632326,-173.94,0.00016667,2]
[326730446,1715286632336,-150.0,0.00017,2]
[326730447,1715286632345,-499.99,0.00017808,2]
[326730448,1715286632355,-352.51,0.00017808,2]
[326730449,1715286632365,-4677.76,0.0001908,2]
[326730450,1715286632375,-1980.52,0.0001908,2]
[326730451,1715286632385,-150.39,0.00019178,2]
[326730452,1715286632395,-159.03,0.00019178,2]
[326730453,1715286632404,-11711.47,0.00020116,2]
[326730454,1715286632413,-2123.58,0.0002028,2]
[326730455,1715286632423,-216.84,0.00020388,2]
[326730456,1715286632432,-4580.84763394,0.00020406,2]
[326730457,1715286632442,-329.48874457,0.00020442,2]
[326730458,1715286632451,-155.76589553,0.00020442,2]
[326730459,1715286632460,-405.21355048,0.00020442,2]
[326730460,1715286632470,-156.71208223,0.00020442,2]
[326730461,1715286632479,-155.0,0.00020442,2]
[326730462,1715286632488,-194.34268049,0.00020442,2]
[326730463,1715286632498,-534.79759922,0.00020442,2]
[326730464,1715286632507,-569.00557054,0.00020442,2]
[326730465,1715286632517,-155.45749735,0.00020442,2]
[326730466,1715286632526,-162.08193255,0.00020443,2]
[326730467,1715286632535,-1052.05964256,0.00020443,2]
[326730468,1715286632544,-363.81807592,0.00020443,2]
[326730469,1715286632553,-206898.12819857,0.00020444,2]
[326730470,1715286632564,-496.346633,0.00020444,2]
[326730471,1715286632575,-730.35536255,0.00020444,2]
[326730472,1715286632586,-786.70850841,0.00020444,2]
[326730473,1715286632598,-6947.77168517,0.00020444,2]
[326730474,1715286632609,-4882.6196123,0.00020444,2]
[326730475,1715286632618,-287.52,0.00020484,2]
[326730476,1715286632632,-160.7,0.00020506,2]
[326730477,1715286632643,-500.0,0.00020548,2]
[326730478,1715286632652,-250.0,0.00020658,2]
[326730479,1715286632662,-185.88,0.00020698,2]
[326730480,1715286632671,-250.0,0.00020803,2]
[326730481,1715286632682,-2000.0,0.00021918,3]
[326730482,1715286632691,-250.0,0.00021918,2]
[326730483,1715286632701,-387.83,0.00022562,2]
[326730484,1715286632712,-4580.8476339,0.00022907,2]
[326730485,1715286632721,-287.52,0.00023044,2]
[326730486,1715286632731,-187.92,0.00023144,2]
[326730487,1715286632740,-165.91,0.0002356,2]
[326730488,1715286632749,-655.0,0.000238,3]
[326730489,1715286632758,-173.04,0.00024566,2]
[326730490,1715286632767,-185.88,0.00024567,2]
[326730491,1715286632776,-173.94,0.00025,2]
[326730492,1715286632785,-2926.50751443,0.00025,2]
[326730493,1715286632795,-4580.8476339,0.00025408,2]
[326730494,1715286632804,-287.52,0.00025604,2]
[326730495,1715286632813,-245.04,0.00027111,2]
[326730496,1715286632822,-150.0,0.00027397,2]
[326730497,1715286632832,-4580.8476339,0.00027908,2]
[326730498,1715286632842,-287.52,0.00028165,2]
[326730499,1715286632853,-150.39,0.00029888,2]
[326730500,1715286632862,-5681.44871975,0.0003,2]
[326730501,1715286632874,-2170.82789106,0.0003,10]
[326730502,1715286632885,-4180.05780724,0.0003,4]
[326730503,1715286632987,-15186.66914016,0.0003,4]
[326730504,1715286632996,-13999.9998462,0.0003,4]
[326730505,1715286633006,-4580.8476339,0.00030409,2]
[326730506,1715286633015,-577.24996601,0.0003059,2]
[326730507,1715286633025,-287.52,0.00030725,2]
[326730508,1715286633034,-34824.5947,0.00031766,2]
[326730509,1715286633044,-333.01810814,0.00032,4]
[326730510,1715286633056,-155.0,0.00032775,4]
[326730511,1715286633066,-155.0,0.00032776,4]
[326730512,1715286633075,-236.89456322,0.00032776,4]
[326730513,1715286633085,-466.30523048,0.00032777,2]
[326730514,1715286633096,-33.69476952,0.00032777,2]
[326730515,1715286633106,-3279.47094658,0.00032876,4]
[326730516,1715286633116,-155.18265524,0.00032876,4]
[326730517,1715286633126,-161.73293461,0.00032876,4]
[326730518,1715286633135,-4580.8476339,0.0003291,2]
[326730519,1715286633144,-150.0,0.00033,2]
[326730520,1715286633154,-577.24996601,0.00033061,2]
[326730521,1715286633163,-152.15,0.000335,2]
[326730522,1715286633173,-152.15,0.000335,2]
[326730523,1715286633182,-152.15,0.000335,2]
[326730524,1715286633192,-152.15,0.000335,2]
[326730525,1715286633201,-152.15,0.000335,2]
[326730526,1715286633211,-152.15,0.000335,2]
[326730527,1715286633221,-152.15,0.000335,2]
[326730528,1715286633230,-152.15,0.000335,2]
[326730529,1715286633240,-152.15,0.000335,2]
[326730530,1715286633250,-152.15,0.000335,2]
[326730531,1715286633260,-152.15,0.000335,2]
[326730532,1715286633270,-152.15,0.000335,2]
[326730533,1715286633280,-152.15,0.000335,2]
[326730534,1715286633289,-187.92,0.00034716,2]
[326730535,1715286633299,-4639.536641,0.000348,2]
[326730536,1715286633310,-6283.55584322,0.000348,2]
[326730537,1715286633322,-387.99999996,0.000348,2]
[326730538,1715286638087,-1629.68005117,0.00020442,2]
[326730539,1715286638099,-435.10718445,0.00020442,2]
[326730540,1715286638114,-94.38776438,0.00020442,2]
[326730542,1715286638125,-287.74911882,0.000348,2]
[326730543,1715286638135,-4580.8476339,0.00035411,2]
[326730544,1715286638145,-577.24996601,0.00035533,2]
[326730545,1715286638155,-9279.073283,0.000356,2]
[326730546,1715286638165,-11598.841604,0.000356,2]
[326730547,1715286638175,-2214.88828256,0.000356,2]
[326730548,1715286638186,-2199.76057497,0.000356,2]
[326730549,1715286638198,-11823.72938747,0.000356,2]
[326730550,1715286638208,-152.15,0.000356,3]
[326730551,1715286638217,-152.15,0.000356,3]
[326730552,1715286638227,-152.15,0.000356,3]
[326730553,1715286638236,-152.15,0.000356,3]
[326730554,1715286638246,-152.15,0.000356,3]
[326730555,1715286638256,-152.15,0.000356,3]
[326730556,1715286638266,-152.15,0.000356,3]
[326730557,1715286638276,-152.15,0.000356,3]
[326730558,1715286638285,-152.15,0.000356,3]
[326730559,1715286638295,-152.15,0.000356,3]
[326730560,1715286638304,-152.15,0.000356,3]
[326730561,1715286638314,-152.15,0.000356,3]
[326730562,1715286638324,-152.15,0.000356,3]
[326730563,1715286638333,-500.0,0.00036102,10]
[326730564,1715286638343,-500.0,0.00036102,10]
[326730565,1715286638353,-2336.0,0.00037,60]
[326730566,1715286638363,-284.12116106,0.00037198,10]
[326730567,1715286638372,-500.0,0.00037198,10]
[326730568,1715286638383,-152.15,0.000376,3]
[326730569,1715286638393,-152.15,0.000376,3]
[326730570,1715286638403,-152.15,0.000376,3]
[326730571,1715286638412,-152.15,0.000376,3]
[326730572,1715286638422,-152.15,0.000376,3]
[326730573,1715286638432,-152.15,0.000376,3]
[326730574,1715286638442,-152.15,0.000376,3]
[326730575,1715286638452,-152.15,0.000376,3]
[326730576,1715286638462,-152.15,0.000376,3]
[326730577,1715286638472,-152.15,0.000376,3]
[326730578,1715286638483,-152.15,0.000376,3]
[326730579,1715286638493,-152.15,0.000376,3]
[326730580,1715286638502,-152.15,0.000376,3]
[326730581,1715286638512,-383.05538099,0.000378,2]
[326730582,1715286638522,-156.34710433,0.00037891,7]
[326730583,1715286638532,-294.03238734,0.000379,2]
[326730584,1715286638542,-4580.8476339,0.00037911,2]
[326730585,1715286638552,-151.48,0.0003799,2]
[326730586,1715286638561,-151.48,0.0003799,2]
[326730587,1715286638571,-151.48,0.0003799,2]
[326730589,1715286638581,-237380.50521549,0.00038,2]
[326730596,1715286638894,-303.71835573,0.00038,15]
[326730597,1715286638906,-316.62,0.00038,15]
[326730598,1715286638918,-2011.9189824,0.00038,15]
[326730602,1715286641714,-1064.36232487,0.00038,15]
[326730605,1715286641734,-804.29,0.00038,15]
[326730607,1715286641748,-4855.09641126,0.00038,15]
[326730611,1715286641763,-477.94735817,0.00038,15]
[326730615,1715286641777,-675.89400913,0.00038,15]
[326730617,1715286641790,-675.23513532,0.00038,15]
[326730619,1715286641804,-845.33209268,0.00038,15]
[326730621,1715286641817,-468.67992952,0.00038,15]
[326730624,1715286641829,-1058.52056441,0.00038,15]
[326730626,1715286641842,-606.77984799,0.00038,15]
[326730628,1715286641856,-5737.09061919,0.00038,15]
[326730630,1715286641868,-468.88098501,0.00038,15]
[326730632,1715286641881,-681.33262632,0.00038,15]
[326730671,1715286643381,-7446.6,0.00038,15]
[326730673,1715286643393,-1930.936,0.00038,15]
[326730679,1715286644349,-1298.5860244,0.00037999,4]
[326730680,1715286644359,-14094.38695559,0.00038,15]
[326730688,1715286646035,-393.54961396,0.00037999,4]
[326730689,1715286646045,-806.45038604,0.00038,15]
[326730690,1715286646058,-125079.87189611,0.00038,15]
[326730691,1715286646283,-1867.82005441,0.00038,15]
[326730692,1715286646295,-313.99159286,0.00038,15]
[326730693,1715286646525,-949.26000002,0.00038,15]
[326730696,1715286646536,-3167.35508617,0.00038,15]
[326730701,1715286669707,361.66236523,0.00012,2]
[326730702,1715286823838,271863.0,0.00013,2]
[326730703,1715287018558,23882.16364394,0.000219,30]
[326730704,1715287069821,155.0,0.00011698,2]
[326730705,1715287134243,423.34305208,0.00010528,2]
[326730706,1715287152127,382.88913651,0.00010528,2]
[326730707,1715287211096,-401.30921672,0.0001286,2]
[326730708,1715287211123,-4422.5548684,0.0001286,2]
[326730709,1715287211147,-3024.88433628,0.0001286,2]
[326730710,1715287211172,-302.08819502,0.00012861,2]
[326730711,1715287211196,-572.49269882,0.00012861,7]
[326730712,1715287211221,-538.95357639,0.00012862,2]
[326730713,1715287211244,-2183.75134658,0.00012862,2]
[326730714,1715287211268,-150.0,0.00012863,2]
[326730715,1715287211292,-150.0,0.00012863,2]
[326730716,1715287211316,-1900.0,0.00012865,2]
[326730717,1715287211342,-19472.61667421,0.00012865,2]
[326730718,1715287211368,-938.41528503,0.00012866,2]
[326730719,1715287211392,-11135.17822219,0.00012868,2]
[326730720,1715287211416,-3268.0722,0.00012888,2]
[326730721,1715287211440,-4736.4816,0.000129,2]
[326730722,1715287211465,-1275.32729883,0.000129,2]
[326730723,1715287211489,-11852.89,0.00012986,2]
[326730724,1715287211513,-24241.65297261,0.0001299,2]
[326730725,1715287211776,-1098.77,0.0001299,2]
[326730726,1715287211806,-9999.99,0.0001299,2]
[326730727,1715287211835,-299.99,0.0001299,2]
[326730728,1715287211862,-499.99,0.0001299,2]
[326730729,1715287211890,-150.99,0.0001299,2]
[326730730,1715287211919,-440.08826782,0.00012997,2]
[326730731,1715287211945,-156.70516259,0.00012998,2]
[326730732,1715287211971,-240.9133084,0.00012998,2]
[326730733,1715287211997,-524.04479434,0.00012998,2]
[326730734,1715287212022,-707.68247554,0.00012998,2]
[326730735,1715287212049,-405.26692787,0.00012998,2]
[326730736,1715287212073,-408.47070558,0.00012998,2]
[326730737,1715287212098,-533.77884656,0.00012998,2]
[326730738,1715287212123,-487.99073708,0.00012998,2]
[326730739,1715287212148,-5266.7635262,0.00012998,2]
[326730740,1715287212176,-326.00629389,0.00012998,2]
[326730741,1715287212200,-1246.19502769,0.00012998,2]
[326730742,1715287212226,-167.58743393,0.00012998,2]
[326730743,1715287212250,-9036.72,0.00012998,2]
[326730744,1715287212276,-317.50955943,0.00012999,2]
[326730745,1715287212302,-204.17519546,0.00012999,2]
[326730746,1715287212327,-1074.61897376,0.00012999,3]
[326730747,1715287212350,-150.99,0.00012999,2]
[326730748,1715287212375,-150.99,0.00012999,2]
[326730749,1715287212402,-508885.1596231,0.00012999,2]
[326730750,1715287212430,-2283414.94464968,0.00013,2]
[326730752,1715287259856,-1787.2571842,0.00012859,2]
[326730753,1715287259881,-181.49625513,0.00012989,2]
[326730754,1715287259909,-181.49625513,0.0001299,2]
[326730755,1715287259932,-181.49625513,0.0001299,2]
[326730756,1715287259957,-151.48,0.0001299,2]
[326730757,1715287259980,-240.93556492,0.00012999,7]
[326730758,1715287260005,-511.602544,0.00012999,2]
[326730759,1715287260029,-253.35944017,0.00012999,2]
[326730760,1715287260053,-936.8170768,0.00012999,2]
[326730761,1715287260080,-1475.44450906,0.00012999,2]
[326730762,1715287260103,-3024.88433628,0.00012999,2]
[326730763,1715287260129,-1187283.73057918,0.00013,2]
[326730769,1715287820315,181.46,0.00011305,2]
[326730770,1715287832036,-1987.29412416,0.0001267,2]
[326730774,1715287832051,-1037.59021212,0.0001267,2]
[326730775,1715287832060,-1787.2571842,0.00012671,2]
[326730776,1715287832071,-547.88732436,0.00012672,2]
[326730777,1715287832081,-871.05859943,0.00012674,2]
[326730779,1715287832090,-200.0,0.00012676,2]
[326730781,1715287832101,-264.82133589,0.00012676,2]
[326730782,1715287832113,-1000.0,0.00012899,2]
[326730784,1715287832122,-150.0,0.00012899,2]
[326730787,1715287832132,-268.613344,0.000129,2]
[326730790,1715287832144,-4822.69,0.000129,2]
[326730791,1715287832155,-1386.56964087,0.000129,2]
[326730792,1715287832309,-78412.25411513,0.000129,2]
[326730793,1715287832319,-551.1046,0.000129,2]
[326730794,1715287832329,-1395.3257942,0.00012998,2]
[326730795,1715287832339,-317.50955943,0.00012999,2]
[326730796,1715287832349,-7508.55,0.00012999,2]
[326730797,1715287832359,-9999.99,0.00012999,2]
[326730798,1715287832369,-38764.61,0.00012999,2]
[326730799,1715287832379,-202.47974789,0.00012999,3]
[326730800,1715287832389,-499.99,0.00012999,2]
[326730801,1715287832399,-181221.63618196,0.00013,2]
[326730802,1715287832408,-1014.71958,0.00013,2]
[326730803,1715287832419,-905.94,0.00013,2]
[326730804,1715287832428,-287.57047566,0.00013473,2]
[326730805,1715287832437,-999.99,0.00013473,2]
[326730806,1715287832448,-9999.99,0.00013473,2]
[326730807,1715287832458,-499.99,0.00013473,2]
[326730808,1715287832481,-150.99,0.00013473,2]
[326730809,1715287832500,-1163.12,0.00013473,2]
[326730810,1715287832510,-1137.59627639,0.00013697,2]
[326730811,1715287832521,-282.69,0.00013797,2]
[326730812,1715287832531,-3753.15464098,0.00013997,2]
[326730813,1715287832541,-1037.70360246,0.00014,2]
[326730814,1715287832551,-1500.0,0.00014459,2]
[326730815,1715287832560,-500.0,0.00014525,2]
[326730816,1715287832570,-618.36792039,0.00015,2]
[326730817,1715287832580,-1852.42,0.00015045,2]
[326730818,1715287832589,-250.0,0.00015183,2]
[326730819,1715287832599,-194.48369157,0.000158,2]
[326730820,1715287832610,-177.44367573,0.000158,2]
[326730822,1715287832620,-3077.0200038,0.00016,2]
[326730824,1715287832629,-262.51,0.00016178,2]
[326730826,1715287832638,-165.91,0.00016178,2]
[326730828,1715287832649,-600.0,0.00016425,2]
[326730829,1715287832659,-3753.15464097,0.00016626,2]
[326730830,1715287832669,-2357.86048009,0.00017256,2]
[326730831,1715287832679,-306.5091332,0.00017256,2]
[326730832,1715287832689,-1137.59627636,0.00017636,2]
[326730833,1715287832699,-16324.34370885,0.0001788,2]
[326730834,1715287832711,-888.36762147,0.0001788,2]
[326730835,1715287832723,-335.55356,0.0001788,2]